bitfinex/quotes_ETHUSD_20250914
["timestamp","ask_amount","ask_price","bid_price","bid_amount"]
[1757814300627,3.861,4664.3,4664.1,0.1072]
[1757814300833,0.4613,4664.2,4664.1,0.1072]
[1757814301355,0.7583,4664.2,4664.1,0.1072]
[1757814302967,1.2169,4664.2,4664.1,0.1072]
[1757814303194,1.2169,4664.2,4663.9,0.1072]
[1757814303567,1.2169,4664.2,4663.9,2.25132577]
[1757814303761,1.2169,4664.2,4663.9,0.1072]
[1757814304199,0.48271939,4664.1,4663.3,0.001]
[1757814304424,3.564,4664.0,4663.3,0.001]
[1757814304696,0.297,4663.4,4663.3,0.001]
[1757814304858,3.86,4663.4,4663.3,0.001]
[1757814305495,0.48271939,4663.8,4663.3,0.001]
[1757814305694,0.48271939,4663.8,4663.3,0.3049]
[1757814305695,3.563,4663.7,4663.3,0.3049]
[1757814305896,0.297,4663.4,4663.3,0.001]
[1757814306194,0.02141939,4663.6,4663.3,0.001]
[1757814306397,0.02141939,4663.6,4663.3,0.3049]
[1757814306966,0.02141939,4663.6,4663.3,0.001]
[1757814307302,0.48271939,4663.6,4663.3,0.001]
[1757814307499,0.02141939,4663.6,4663.3,2.14539441]
[1757814307795,3.563,4663.7,4663.3,2.14539441]
[1757814308000,3.58441939,4663.7,4663.3,2.14539441]
[1757814308580,3.563,4663.7,4663.4,2.14434841]
[1757814308876,1.645,4664.1,4663.6,2.4481537]
[1757814309078,3.564,4664.0,4663.9,2.1441283]
[1757814309284,3.564,4664.0,4663.9,2.9180283]
[1757814309796,3.564,4664.0,4663.9,0.7739]
[1757814310174,3.564,4664.0,4663.9,0.3039]
[1757814310376,4.80231939,4664.0,4663.5,2.14431221]
[1757814310572,0.9199,4663.9,4663.5,2.14431221]
[1757814310807,3.564,4664.0,4663.6,2.14425253]
[1757814311001,3.58541939,4664.0,4663.5,2.61431021]
[1757814311507,4.04671939,4664.0,4663.5,2.14431021]
[1757814311725,0.9199,4663.9,4663.4,2.14435588]
[1757814312032,3.58541939,4664.0,4663.3,0.001]
[1757814312033,0.297,4663.6,4663.3,0.001]
[1757814312232,3.564,4663.5,4663.4,2.14434927]
[1757814312401,3.861,4663.5,4663.4,2.14434927]
[1757814313312,3.564,4663.5,4663.4,2.14434927]
[1757814314234,3.564,4663.5,4663.4,2.25154927]
[1757814314937,4.3223,4663.5,4663.4,0.1072]
[1757814315108,4.7809,4663.5,4663.3,0.001]
[1757814315303,0.4613,4663.4,4663.3,0.001]
[1757814315614,3.861,4663.5,4663.3,0.001]
[1757814316221,4.3212,4663.5,4663.3,0.001]
[1757814317538,3.861,4663.5,4663.3,0.001]
[1757814317946,3.564,4663.5,4663.3,0.001]
[1757814318246,3.564,4663.5,4663.3,2.14540042]
[1757814319252,3.564,4663.5,4663.4,2.14435819]
[1757814319553,3.564,4663.5,4663.4,2.87945819]
[1757814319740,0.12861939,4663.9,4663.5,2.14426884]
[1757814320050,3.564,4663.8,4663.5,2.58106884]
[1757814320217,3.564,4663.8,4663.5,0.4368]
[1757814320418,3.564,4663.8,4663.4,2.14435247]
[1757814321429,4.0242,4663.8,4663.4,2.14435247]
[1757814321629,4.0242,4663.8,4663.3,0.02244404]
[1757814322025,3.564,4663.8,4663.3,0.02244404]
[1757814322230,0.3004,4663.4,4663.3,0.02244404]
[1757814322436,3.8644,4663.4,4663.3,0.001]
[1757814322767,4.7981,4663.4,4663.3,0.001]
[1757814323121,4.3246,4663.4,4663.3,0.001]
[1757814325356,3.8644,4663.4,4663.3,0.001]
[1757814325522,3.564,4663.4,4663.3,0.001]
[1757814326161,3.8644,4663.4,4663.3,0.001]
[1757814326349,4.3246,4663.4,4663.3,0.001]
[1757814326551,4.7981,4663.4,4663.3,0.001]
[1757814327372,4.3246,4663.4,4663.3,0.001]
[1757814327888,4.7981,4663.4,4663.3,0.001]
[1757814328536,6.94245819,4663.4,4663.3,0.001]
[1757814329554,7.73445819,4663.4,4663.3,0.001]
[1757814330283,10.73445819,4663.4,4663.3,0.001]
[1757814332678,10.82027235,4663.4,4663.3,0.001]
[1757814335283,17.84027235,4663.4,4663.3,0.001]
[1757814335474,17.96013438,4663.4,4663.3,0.001]
[1757814338965,19.24613438,4663.4,4663.3,0.001]
[1757814339177,19.70591082,4663.4,4663.3,0.001]
[1757814339398,19.24613438,4663.4,4663.3,0.001]
[1757814341711,21.50113438,4663.4,4663.3,0.001]
[1757814346085,14.94063771,4663.4,4663.3,0.001]
[1757814346322,15.14006422,4663.4,4663.3,0.001]
[1757814346913,15.14206422,4663.4,4663.3,0.001]
[1757814347422,15.14203382,4663.4,4663.3,0.001]
[1757814347579,15.71637498,4663.4,4663.3,0.001]
[1757814349390,15.14203382,4663.4,4663.3,0.001]
[1757814349985,4.22281811,4662.4,4662.3,0.001]
[1757814350187,12.4552375,4662.4,4662.3,0.001]
[1757814350412,12.72701811,4662.4,4662.3,0.001]
[1757814350796,12.81285493,4662.4,4662.3,0.001]
[1757814350999,13.28405493,4662.4,4662.3,0.001]
[1757814351813,12.81285493,4662.4,4662.3,0.001]
[1757814352124,12.51965493,4662.4,4662.3,0.001]
[1757814352997,7.66865493,4662.4,4662.3,1.2268]
[1757814353197,11.23365493,4662.4,4662.3,1.2268]
[1757814353699,6.87665493,4662.4,4662.3,1.2268]
[1757814353901,10.44165493,4662.4,4662.3,1.2268]
[1757814354302,6.79081811,4662.4,4662.3,1.2268]
[1757814354495,10.35581811,4662.4,4662.3,1.2268]
[1757814355116,6.79081811,4662.4,4662.3,1.2268]
[1757814355400,10.35581811,4662.4,4662.3,1.2268]
[1757814357404,7.35581811,4662.4,4662.3,1.2268]
[1757814358530,3.79081811,4662.4,4662.3,1.2268]
[1757814358738,7.3772375,4662.4,4662.3,1.2268]
[1757814358912,7.35581811,4662.4,4662.3,1.2268]
[1757814360516,2.14481811,4662.4,4662.3,0.7621]
[1757814360719,0.002,4663.4,4662.3,1.2268]
[1757814360939,3.568,4663.3,4662.4,1.32268934]
[1757814361113,0.1092,4663.4,4663.2,0.2852]
[1757814361449,3.57,4663.3,4663.2,0.2852]
[1757814361629,3.57,4663.3,4663.2,1.2258]
[1757814361805,0.002,4663.4,4663.2,1.2258]
[1757814362013,0.002,4663.4,4663.3,3.22902821]
[1757814362508,0.002,4663.4,4663.3,3.51422821]
[1757814363924,0.002,4663.4,4663.3,3.71408706]
[1757814364132,0.002,4663.4,4663.3,3.69264302]
[1757814364346,0.002,4663.4,4663.3,6.71408706]
[1757814364554,0.002,4663.4,4663.3,36.69264302]
[1757814369528,0.002,4663.4,4663.3,40.26164302]
[1757814371363,0.002,4663.5,4663.4,5.14435819]
[1757814371544,0.002,4663.5,4663.4,7.48336887]
[1757814371733,0.002,4663.5,4663.4,8.70916887]
[1757814371935,0.002,4663.5,4663.4,8.81636887]
[1757814378073,0.002,4663.5,4663.4,8.81511229]
[1757814379482,0.002,4664.0,4663.8,2.14417427]
[1757814379686,0.002,4664.0,4663.8,39.44363571]
[1757814379982,0.002,4664.0,4663.8,40.77649397]
[1757814381388,0.002,4664.0,4663.8,40.30819397]
[1757814381880,0.002,4664.0,4663.8,40.77649397]
[1757814388008,0.002,4664.0,4663.8,40.30819397]
[1757814390078,0.002,4664.4,4664.2,2.14399039]
[1757814390279,0.002,4664.5,4664.3,3.0]
[1757814390523,0.002,4664.5,4664.4,37.07664125]
[1757814390688,0.002,4664.5,4664.4,40.13940073]
[1757814390879,0.002,4664.5,4664.4,40.39871007]
[1757814391083,0.08,4664.8,4664.7,2.14376058]
[1757814391411,0.4715,4666.1,4666.0,2.1431633]
[1757814391610,0.7662,4666.1,4666.0,2.34176557]
[1757814391795,0.7662,4666.1,4666.0,2.4695972]
[1757814391995,0.7662,4666.1,4666.0,5.44816557]
[1757814393105,0.7662,4666.1,4666.0,5.2495633]
[1757814393311,0.7662,4666.1,4666.0,5.44925688]
[1757814393477,1.2205,4666.1,4666.0,5.44925688]
[1757814394490,0.7662,4666.1,4666.0,5.44925688]
[1757814396204,0.2947,4666.1,4666.0,5.44925688]
[1757814396514,0.02141939,4666.9,4666.3,2.14302552]
[1757814396678,0.4715,4666.8,4666.7,2.14284183]
[1757814396883,0.4543,4667.2,4666.9,2.14273254]
[1757814396884,0.4715,4667.2,4666.9,2.14273254]
[1757814397076,0.4715,4667.9,4667.5,2.14247455]
[1757814397281,0.4715,4667.8,4667.6,0.19931216]
[1757814397513,0.4715,4667.8,4667.3,3.563]
[1757814397514,0.4715,4667.8,4667.7,2.44809491]
[1757814397713,0.4543,4668.1,4668.0,2.14224507]
[1757814397913,0.02141939,4668.7,4667.8,2.16373075]
[1757814398082,0.02141939,4668.7,4668.0,0.1064]
[1757814398283,0.2947,4668.1,4668.0,0.1064]
[1757814398516,1.2205,4668.1,4668.0,0.1064]
[1757814400392,0.7662,4668.1,4668.0,0.1064]
[1757814400825,1.2205,4668.1,4668.0,0.1064]
[1757814402023,1.34255,4668.1,4668.0,0.1064]
[1757814402693,0.88825,4668.1,4668.0,0.1064]
[1757814402894,0.4715,4668.4,4668.0,0.1064]
[1757814403093,0.2947,4668.1,4668.0,0.1064]
[1757814403323,1.2205,4668.1,4668.0,0.1064]
[1757814404321,0.7662,4668.1,4668.0,0.1064]
[1757814405023,1.2205,4668.1,4668.0,0.1064]
[1757814405431,1.5588942,4668.1,4668.0,0.1064]
[1757814405596,1.2205,4668.1,4668.0,0.1064]
[1757814405997,1.2205,4668.1,4667.6,0.1064]
[1757814406237,0.02141939,4668.0,4667.6,0.1064]
[1757814406526,0.2922,4667.7,4667.6,0.1064]
[1757814406691,1.228,4667.7,4667.6,0.1064]
[1757814406895,0.4915,4668.1,4667.7,2.14238147]
[1757814407115,0.02141939,4668.2,4667.9,0.1064]
[1757814407516,0.2922,4668.0,4667.9,0.1064]
[1757814407708,0.7837,4668.0,4667.9,0.1064]
[1757814411042,0.2922,4668.0,4667.9,0.1064]
[1757814413743,0.02141939,4668.2,4667.9,2.24869096]
[1757814414360,0.47731939,4668.5,4667.9,0.1064]
[1757814414532,0.3038,4668.0,4667.9,0.1064]
[1757814415466,1.2276,4668.0,4667.9,0.1064]
[1757814415620,0.4679,4668.5,4668.0,2.14223032]
[1757814415823,0.3038,4668.1,4666.9,0.4866]
[1757814416043,0.9238,4668.0,4667.7,2.14237629]
[1757814416271,0.3038,4667.8,4667.7,2.14237629]
[1757814416490,0.4679,4667.9,4667.5,2.14246952]
[1757814416693,0.4559,4668.3,4667.6,2.14242865]
[1757814416849,0.9238,4668.3,4667.9,2.14226432]
[1757814417194,0.002,4668.1,4668.0,2.14224507]
[1757814417976,0.002,4668.1,4668.0,2.85954507]
[1757814421557,0.002,4668.1,4668.0,10.76547403]
[1757814424118,0.002,4668.1,4668.0,40.76547403]
[1757814425120,0.002,4668.1,4668.0,41.55747403]
[1757814425596,0.002,4668.1,4668.0,41.66387403]
[1757814427007,0.02141939,4669.4,4668.0,41.66387403]
[1757814427008,0.4679,4669.9,4668.7,2.14192387]
[1757814427232,0.08,4670.8,4669.8,0.2897]
[1757814427233,0.4559,4670.7,4669.8,0.2897]
[1757814427396,0.4679,4670.5,4669.8,0.2897]
[1757814427808,0.02141939,4670.4,4670.0,2.14131739]
[1757814428004,0.48931939,4670.4,4669.9,2.14136923]
[1757814428205,0.02141939,4670.4,4669.9,2.14136923]
[1757814428504,0.02141939,4670.4,4669.7,3.0]
[1757814428505,0.4679,4670.3,4670.0,2.1413147]
[1757814428714,0.4679,4670.3,4669.9,2.14136936]
[1757814429019,0.3038,4669.8,4669.5,2.1415374]
[1757814429325,0.9238,4669.7,4669.6,5.14150352]
[1757814429488,1.2276,4669.7,4669.6,5.14150352]
[1757814429688,0.7717,4669.7,4669.6,5.14150352]
[1757814430190,0.7717,4669.7,4669.6,5.34019705]
[1757814430427,0.02141939,4670.6,4669.6,5.34019705]
[1757814430428,0.02141939,4670.6,4669.6,4.59297206]
[1757814430728,3.524,4670.8,4670.4,2.14110272]
[1757814431043,3.9919,4670.8,4670.5,0.19869353]
[1757814431247,3.9919,4670.8,4670.6,0.19869353]
[1757814431545,0.08,4670.8,4670.7,2.62916891]
[1757814431714,0.08,4670.8,4670.7,3.48400112]
[1757814432038,0.08,4670.8,4670.7,6.46259106]
[1757814432541,0.3838,4670.8,4670.7,5.33946891]
[1757814432739,0.8517,4670.8,4670.7,3.19846221]
[1757814432938,0.8517,4670.8,4670.7,5.33946891]
[1757814433104,0.3838,4670.8,4670.7,5.33946891]
[1757814433438,0.08,4670.8,4670.7,5.33946891]
[1757814433812,0.08,4670.8,4670.7,5.62916891]
[1757814434016,0.08,4670.8,4670.7,6.05676891]
[1757814434248,0.08,4670.8,4670.7,7.23305453]
[1757814434937,0.08,4670.8,4670.7,6.80545453]
[1757814435530,0.082,4670.8,4670.7,6.80545453]
[1757814436242,0.878,4670.8,4670.7,3.19846221]
[1757814436442,0.3847,4670.8,4670.7,3.19846221]
[1757814436643,0.082,4670.8,4670.7,5.33946891]
[1757814436829,0.082,4670.8,4670.7,6.06776891]
[1757814437034,0.082,4670.8,4670.7,10.08936891]
[1757814437214,0.082,4670.8,4670.7,11.41881451]
[1757814437410,0.082,4670.8,4670.7,41.41881451]
[1757814438337,0.082,4670.8,4670.7,42.21081451]
[1757814440834,0.082,4670.8,4670.7,42.20989838]
[1757814441235,0.082,4670.8,4670.7,41.32369838]
[1757814441564,0.082,4670.8,4670.7,41.75529838]
[1757814442063,0.082,4670.8,4670.7,6.96469838]
[1757814442242,0.082,4670.8,4670.7,10.53269838]
[1757814443073,0.082,4670.8,4670.7,37.39629838]
[1757814443247,0.082,4670.8,4670.7,40.96329838]
[1757814443965,0.082,4670.8,4670.7,40.53169838]
[1757814444167,0.3847,4670.8,4670.7,40.23499838]
[1757814444979,0.3847,4670.8,4670.7,36.66799838]
[1757814445151,0.3847,4670.8,4670.7,40.23499838]
[1757814445340,0.082,4670.8,4670.7,40.53169838]
[1757814445736,0.082,4670.8,4670.7,41.41789838]
[1757814445969,0.082,4670.8,4670.7,42.20989838]
[1757814446269,0.082,4670.8,4670.7,41.75529838]
[1757814447557,0.082,4670.8,4670.7,40.53169838]
[1757814448640,0.3847,4670.8,4670.7,40.23499838]
[1757814448950,0.3847,4670.8,4670.7,40.23399838]
[1757814449153,0.878,4670.8,4670.7,10.23399838]
[1757814449351,0.878,4670.8,4670.7,6.66799838]
[1757814449538,0.082,4670.8,4670.7,10.23499838]
[1757814449738,0.082,4670.8,4670.7,10.53169838]
[1757814449959,0.082,4670.8,4670.7,10.96329838]
[1757814450771,0.082,4670.8,4670.7,10.53169838]
[1757814452911,0.082,4670.8,4670.7,11.41789838]
[1757814453196,0.082,4670.8,4670.7,12.20989838]
[1757814453404,0.002,4671.8,4671.7,2.1405484]
[1757814453641,0.08,4672.8,4671.8,3.0]
[1757814453896,0.4933,4672.2,4672.1,2.14036514]
[1757814454098,1.2617,4672.2,4672.1,5.33791122]
[1757814455003,0.796,4672.2,4672.1,2.33791122]
[1757814456070,0.3027,4672.2,4672.1,2.33791122]
[1757814456582,0.4933,4672.6,4672.4,2.14022772]
[1757814456786,0.08,4672.8,4672.7,2.14009031]
[1757814456973,0.08,4672.8,4672.7,2.33828205]
[1757814457167,0.3827,4672.8,4672.7,2.35968295]
[1757814457715,0.876,4672.8,4672.7,2.35968295]
[1757814458075,0.876,4672.8,4672.7,2.33828205]
[1757814458303,0.3827,4672.8,4672.7,2.33828205]
[1757814458470,0.08,4672.8,4672.7,2.63498205]
[1757814458671,0.08,4672.8,4672.7,3.51245665]
[1757814458870,0.08,4672.8,4672.7,6.51245665]
[1757814459179,0.08,4672.8,4672.7,6.94405665]
[1757814459584,0.08,4672.8,4672.7,6.51245665]
[1757814459782,0.08,4672.8,4672.7,6.21575665]
[1757814461985,0.08,4672.8,4672.7,6.51245665]
[1757814462409,0.08,4672.8,4672.7,6.31426491]
[1757814462782,1.3417,4672.8,4672.7,6.01756491]
[1757814462999,1.3417,4672.8,4672.7,8.70809031]
[1757814463482,1.3417,4672.8,4672.7,8.81449031]
[1757814463683,1.3417,4672.8,4672.7,3.1064]
[1757814464584,0.876,4672.8,4672.7,3.1064]
[1757814465289,0.876,4672.8,4672.7,5.24649031]
[1757814465591,1.3417,4672.8,4672.7,3.1064]
[1757814466093,1.3417,4672.8,4672.7,5.24649031]
[1757814467033,0.08,4672.8,4672.7,10.19895649]
[1757814467317,0.08,4672.8,4672.7,10.66395649]
[1757814468116,0.08,4672.8,4672.7,11.92815649]
[1757814468279,0.08,4672.8,4672.7,11.82175649]
[1757814468485,0.4803,4674.0,4673.9,2.13954085]
[1757814468697,0.4803,4674.0,4672.8,3.0]
[1757814468698,1.642,4674.1,4674.0,2.13949507]
[1757814468902,2.4161,4674.1,4674.0,2.13949507]
[1757814469119,2.4161,4674.1,4673.5,3.0]
[1757814469333,2.4161,4674.1,4673.9,2.13952477]
[1757814469828,2.4161,4674.1,4673.7,3.0]
[1757814469829,2.4161,4674.1,4674.0,2.13949507]
[1757814470031,2.4181,4674.1,4674.0,2.13949507]
[1757814470999,2.4181,4674.1,4674.0,2.42959507]
[1757814471000,0.002,4674.1,4674.0,2.42959507]
[1757814471739,0.002,4674.1,4674.0,37.15879507]
[1757814471948,0.002,4674.1,4674.0,39.2979469]
[1757814473628,0.002,4674.1,4674.0,9.2979469]
[1757814473839,0.002,4674.1,4674.0,37.5687469]
[1757814474135,0.002,4674.1,4674.0,7.5687469]
[1757814474304,0.002,4674.1,4674.0,8.99759507]
[1757814474910,0.002,4674.1,4674.0,8.70749507]
[1757814475511,0.3075,4674.1,4674.0,5.13949507]
[1757814475826,0.7957,4674.1,4674.0,8.70749507]
[1757814476045,0.7957,4674.1,4674.0,3.0]
[1757814476246,1.2339,4674.1,4674.0,3.0]
[1757814476448,1.2339,4674.1,4672.6,0.71791357]
[1757814476635,0.9264,4674.0,4673.6,2.13967802]
[1757814476849,0.9264,4674.0,4673.5,2.1397226]
[1757814477027,0.002,4674.1,4673.5,3.0]
[1757814477229,0.3055,4673.6,4673.5,5.13972397]
[1757814477422,0.7937,4673.6,4673.5,5.13972397]
[1757814477628,1.2319,4673.6,4673.2,2.13982015]
[1757814477830,0.9264,4673.5,4673.3,5.70880723]
[1757814478068,0.7937,4673.4,4673.3,2.13981554]
[1757814478265,1.2319,4673.4,4673.3,2.13981554]
[1757814478464,0.4882,4673.8,4673.6,2.13967568]
[1757814478639,0.3055,4673.7,4673.6,2.13967568]
[1757814478963,0.3055,4673.7,4673.4,3.0]
[1757814479162,0.3055,4673.7,4673.6,0.1064]
[1757814479364,0.002,4674.1,4674.0,2.13949507]
[1757814479871,0.002,4674.1,4674.0,2.24589507]
[1757814480166,0.3075,4674.1,4674.0,2.24589507]
[1757814480372,0.7957,4674.1,4674.0,0.1064]
[1757814480570,1.2339,4674.1,4674.0,0.1064]
[1757814482640,1.2339,4674.1,4673.2,2.13985475]
[1757814482844,1.2339,4674.1,4672.6,3.0]
[1757814482845,0.94781939,4674.0,4673.7,0.1064]
[1757814483367,0.3055,4673.8,4673.7,0.1064]
[1757814483768,0.7937,4673.8,4673.7,0.1064]
[1757814484273,1.2319,4673.8,4673.7,0.1064]
[1757814484668,0.3055,4673.8,4673.7,2.24603241]
[1757814484977,0.002,4674.1,4673.8,2.13958663]
[1757814485134,0.002,4674.1,4674.0,0.1064]
[1757814485856,0.3075,4674.1,4674.0,0.1064]
[1757814486059,0.3075,4674.1,4672.5,0.11229019]
[1757814486060,1.25531939,4674.1,4672.7,2.14008143]
[1757814486263,2.13955469,4673.9,4672.4,2.14022772]
[1757814486447,4.40481939,4673.8,4672.7,2.14008045]
[1757814486653,2.13968393,4673.6,4672.6,2.14013089]
[1757814486849,0.3055,4672.7,4671.6,0.4433]
[1757814487187,0.94781939,4673.5,4671.6,0.4433]
[1757814487188,0.94781939,4673.5,4672.4,2.14021402]
[1757814487341,2.411,4673.2,4672.4,2.14021402]
[1757814487646,0.02141939,4673.1,4672.2,2.14027593]
[1757814487838,0.02141939,4673.1,4672.2,2.16171615]
[1757814488038,0.02141939,4673.1,4672.3,2.14026665]
[1757814488538,3.25650133,4673.2,4672.4,0.02140227]
[1757814488767,5.3963743,4673.2,4672.3,2.16164695]
[1757814488971,3.23508194,4673.2,4672.2,3.0]
[1757814489154,2.13995029,4673.1,4672.2,3.0]
[1757814489476,0.02141939,4673.0,4672.2,5.14031176]
[1757814489675,0.02141939,4673.0,4672.2,3.0]
[1757814489984,0.9264,4672.9,4672.2,3.0]
[1757814490180,0.02141939,4672.8,4672.2,2.14031217]
[1757814490349,0.02141939,4672.8,4672.0,5.14037321]
[1757814490677,0.02141939,4672.8,4672.1,2.14036154]
[1757814491049,0.3055,4672.2,4671.9,3.0]
[1757814491272,0.7937,4672.2,4671.8,0.001]
[1757814491867,0.3055,4672.2,4671.8,0.001]
[1757814492100,0.4882,4672.1,4671.8,0.001]
[1757814492883,0.02141939,4672.4,4672.0,0.3117]
[1757814493070,0.02141939,4672.5,4672.0,0.3117]
[1757814493282,0.4882,4672.4,4671.8,2.14149604]
[1757814493475,0.02141939,4672.3,4671.8,2.14149604]
[1757814493790,0.4382,4672.5,4671.8,2.14149604]
[1757814493791,0.02141939,4672.5,4671.9,5.14044001]
[1757814493966,0.02141939,4672.5,4672.2,0.3117]
[1757814494381,1.642,4672.6,4672.2,0.755]
[1757814495811,1.642,4672.6,4672.2,0.3117]
[1757814496096,1.642,4672.6,4672.3,0.1064]
[1757814499200,0.3094,4672.4,4672.3,0.1064]
[1757814499598,1.2372,4672.4,4672.3,0.1064]
[1757814501719,0.763,4672.4,4672.3,0.1064]
[1757814502026,0.3094,4672.4,4672.3,0.1064]
[1757814502322,0.763,4672.4,4672.3,0.1064]
[1757814504015,2.14031609,4672.3,4672.0,0.1064]
[1757814504212,0.02141939,4672.2,4672.0,0.1064]
[1757814504417,0.3094,4672.1,4672.0,0.1064]
[1757814505297,1.2372,4672.1,4672.0,0.1064]
[1757814505616,3.573,4672.1,4672.0,0.4215]
[1757814505819,3.573,4672.1,4672.0,0.1064]
[1757814506131,4.35741939,4672.1,4672.0,0.1064]
[1757814508134,6.49778453,4672.1,4672.0,0.1064]
[1757814508312,6.95056514,4672.1,4671.8,0.001]
[1757814508505,0.4742,4672.0,4671.8,0.001]
[1757814508708,2.16187616,4671.9,4671.8,0.001]
[1757814508938,2.47127616,4671.9,4671.8,0.001]
[1757814509240,1.25861939,4671.9,4671.8,0.001]
[1757814509412,3.39907616,4671.9,4671.8,0.001]
[1757814510205,1.25861939,4671.9,4671.8,0.001]
[1757814510524,3.39907616,4671.9,4671.8,0.001]
[1757814511120,1.25861939,4671.9,4671.8,0.001]
[1757814511442,0.78441939,4671.9,4671.8,0.001]
[1757814512736,3.39907616,4671.9,4671.8,0.001]
[1757814513615,0.78441939,4671.9,4671.8,0.001]
[1757814513821,3.59341939,4671.9,4671.8,0.001]
[1757814514952,3.90281939,4671.9,4671.8,0.001]
[1757814515562,6.49687616,4671.9,4671.8,0.001]
[1757814515736,6.94965677,4671.9,4671.8,0.001]
[1757814517060,6.94965677,4671.9,4671.8,0.101]
[1757814521663,6.47545677,4671.9,4671.8,0.101]
[1757814527380,6.92835677,4671.9,4671.8,0.101]
[1757814528664,6.47545677,4671.9,4671.8,0.101]
[1757814529258,6.92835677,4671.9,4671.8,0.101]
[1757814531595,6.93775677,4671.9,4671.8,0.101]
[1757814535193,6.47545677,4671.9,4671.8,0.101]
[1757814535891,5.71245677,4671.9,4671.8,0.8661]
[1757814536197,6.97835677,4671.9,4671.8,0.101]
[1757814536412,2.14068587,4671.4,4671.3,0.001]
[1757814536622,7.37510526,4671.4,4671.3,0.001]
[1757814536790,8.94005425,4671.4,4671.3,0.001]
[1757814536989,8.73976162,4671.4,4671.3,0.001]
[1757814537189,8.61958587,4671.4,4671.3,0.001]
[1757814539924,8.73975013,4671.4,4671.3,0.001]
[1757814540089,8.61958587,4671.4,4671.3,0.001]
[1757814540621,8.73975009,4671.4,4671.3,0.001]
[1757814540785,7.78655009,4671.4,4671.3,0.001]
[1757814541398,7.66638587,4671.4,4671.3,0.001]
[1757814541585,7.35268587,4671.4,4671.3,0.2996]
[1757814542184,7.35268587,4671.4,4671.3,0.001]
[1757814543623,3.78268587,4671.4,4671.3,0.001]
[1757814543931,7.37410526,4671.4,4671.3,1.236]
[1757814544134,7.35268587,4671.4,4671.3,1.236]
[1757814544327,7.35268587,4671.4,4671.3,0.7661]
[1757814545231,7.35268587,4671.4,4671.3,1.236]
[1757814545232,5.213,4671.4,4671.3,1.236]
[1757814545808,1.642,4671.4,4671.3,1.236]
[1757814546011,5.212,4671.4,4671.3,1.236]
[1757814546440,0.1064,4671.9,4671.3,1.236]
[1757814546752,1.643,4672.1,4671.5,2.24702662]
[1757814546753,3.571,4671.8,4671.5,2.24702662]
[1757814546912,3.571,4671.7,4671.6,0.9364]
[1757814547242,1.643,4672.1,4671.6,0.9364]
[1757814547243,1.643,4672.1,4671.6,3.375593]
[1757814547407,3.571,4672.0,4671.7,0.9364]
[1757814547608,3.571,4672.0,4671.9,0.2986]
[1757814547805,3.571,4672.0,4671.9,1.235]
[1757814548255,3.571,4672.0,4671.9,1.3414]
[1757814550950,3.8847,4672.0,4671.9,0.1064]
[1757814551251,6.38435289,4672.0,4671.4,0.1064]
[1757814551414,2.16188153,4671.9,4671.4,0.1064]
[1757814551842,0.02141939,4671.9,4671.4,0.1064]
[1757814552023,0.02141939,4671.9,4671.5,0.4665]
[1757814552226,2.65177721,4671.9,4671.4,0.1064]
[1757814552428,0.51131939,4671.9,4671.4,0.1064]
[1757814553344,2.65178432,4671.9,4671.4,0.1064]
[1757814553546,0.51131939,4671.9,4671.4,0.1064]
[1757814554348,0.51131939,4671.9,4671.4,0.5729]
[1757814554646,0.02141939,4671.9,4671.4,0.5729]
[1757814554941,0.02141939,4671.9,4671.8,0.2986]
[1757814555729,3.569,4671.9,4671.8,1.2167]
[1757814555925,3.569,4671.9,4671.8,0.7595]
[1757814556138,3.8799,4671.9,4671.7,0.1064]
[1757814556449,0.02141939,4671.8,4671.3,0.5683]
[1757814556614,0.02141939,4671.8,4671.3,3.1074]
[1757814556815,0.02141939,4671.8,4671.3,0.1074]
[1757814557010,0.47851939,4671.8,4671.3,0.1074]
[1757814557447,0.02141939,4671.8,4671.3,0.1074]
[1757814557656,2.45158587,4671.4,4671.3,0.001]
[1757814557863,6.02258587,4671.4,4671.3,0.001]
[1757814558158,6.91398587,4671.4,4671.3,0.001]
[1757814559685,2.90868587,4671.4,4671.3,0.001]
[1757814559852,6.93640526,4671.4,4671.3,0.001]
[1757814560047,6.91498587,4671.4,4671.3,0.001]
[1757814565268,6.48068587,4671.4,4671.3,0.001]
[1757814568200,2.45158587,4671.4,4671.3,0.001]
[1757814568368,6.93340526,4671.4,4671.3,0.001]
[1757814568568,6.91198587,4671.4,4671.3,0.001]
[1757814571689,6.47768587,4671.4,4671.3,0.001]
[1757814572001,6.91198587,4671.4,4671.3,0.001]
[1757814573125,6.91198587,4671.4,4670.8,0.081]
[1757814573126,2.14114422,4670.4,4670.3,0.001]
[1757814573415,7.37556361,4670.4,4670.3,0.001]
[1757814573577,8.12214422,4670.4,4670.3,0.001]
[1757814573776,8.55644422,4670.4,4670.3,0.001]
[1757814574336,8.12214422,4670.4,4670.3,0.001]
[1757814578030,7.66504422,4670.4,4670.3,0.001]
[1757814578440,7.35414422,4670.4,4670.3,0.001]
[1757814579753,3.78414422,4670.4,4670.3,0.3088]
[1757814580038,3.78414422,4670.4,4670.3,0.7697]
[1757814580039,7.37456361,4670.4,4670.3,0.7697]
[1757814580256,7.35314422,4670.4,4670.3,0.7697]
[1757814580453,7.35314422,4670.4,4670.3,0.3088]
[1757814582866,7.66404422,4670.4,4670.3,0.001]
[1757814583168,8.12114422,4670.4,4670.3,0.001]
[1757814589234,7.66404422,4670.4,4670.3,0.001]
[1757814589432,7.35314422,4670.4,4670.3,0.2886]
[1757814589645,7.35314422,4670.4,4670.3,0.7302]
[1757814589858,7.35314422,4670.4,4670.3,0.2886]